Service area,Service sub division,TVBC Service,Expense type,Detailed expense type,TVBC account code,Date Paid,Transaction Reference, Nett Value ,Supplier Name
Environmental & Regulatory,Regulatory Services,Premises & Asset Management,Premises related Expenditure,Water Services,Water And Sewerage Charges,20/05/2021,337434,-33380.79,Castle Water Limited
Central Services to the Public,Management & Support Services,Premises & Asset Management,Premises related Expenditure,Water Services,Water And Sewerage Charges,20/05/2021,338839,-2257.37,Castle Water Limited
Environmental & Regulatory,Regulatory Services,Premises & Asset Management,Premises related Expenditure,Water Services,Water And Sewerage Charges,20/05/2021,338840,-583.94,Castle Water Limited
Central Services to the Public,Elections,Legal & Democratic,Premises related Expenditure,Rents,Premises Hire,13/05/2021,343322,500,Thruxton War Memorial Hall
Planning & Development,Economic Development,Planning Policy & Economic Development ,Supplies & Services,Grants & Subscriptions,Grants,06/05/2021,342296,500,The Geek Emporium
Environmental & Regulatory,Street Cleansing (not chargeable to Highways),Environmental,Supplies & Services,"Equipment, Furniture & Materials",Purchase Equip + Materials,13/05/2021,339610,417.2,Imperial Polythene Products Ltd
"Highways, Roads & Transport",Public Transport,Plan Pol & Transport,Third Party Payments,Transport Operators in Respect of Concessionary Fares,Voluntary Orgs Reimbursement,13/05/2021,343098,505,Romsey Good Neighbours
Central Services to the Public,Management & Support Services,Environmental,Transport Related Expenditure,Direct Transport Costs,Oils,13/05/2021,343030,424.35,Fuchs Lubricants (Uk) Plc
Planning & Development,Development Control,Planning & Building,Supplies & Services,"Printing, Stationery & General Office Expenses",Photocopying Costs,06/05/2021,339915,339.67,Ricoh Uk Ltd
Planning & Development,Planning Policy,Plan Pol & Transport,Supplies & Services,"Printing, Stationery & General Office Expenses",Photocopying Costs,06/05/2021,339915,88.15,Ricoh Uk Ltd
Central Services,Corporate & Democratic Core,Corporate & Democratic,Supplies & Services,Services,Training Courses,27/05/2021,344482,430,Igpp Limited
Central Services to the Public,Elections,Legal & Democratic,Premises related Expenditure,Rents,Premises Hire,13/05/2021,343262,519.75,Augusta Park Community Association
Central Services to the Public,Management & Support Services,Premises & Asset Management,Supplies & Services,Grants & Subscriptions,Subscriptions,20/05/2021,342278,522,Wildy & Sons Ltd
Central Services to the Public,Management & Support Services,Environmental,Supplies & Services,Services,Training Courses,13/05/2021,342802,435,Mot Learning Services
Cultural & Related,Open Spaces,Environmental,Supplies & Services,Services,Training Courses,20/05/2021,343045,443.75,By-Pass Driver Training
Environmental & Regulatory,Waste management,Environmental,Employees,Indirect Employee Expenses,Agency Staff - Waged Posts,27/05/2021,343909,437.92,Aligra
Environmental & Regulatory,Regulatory Services,Housing and Environmental Health ,Supplies & Services,Grants and subscriptions,Capital Grants,13/05/2021,343260,525.53,Liftech Systems (Se) Ltd
Environmental & Regulatory,Waste management,Environmental,Transport Related Expenditure,Direct Transport Costs,Repair Materials,13/05/2021,342808,438.94,Dennis Eagle Ltd
Cultural & Related,Open Spaces,Environmental,Transport Related Expenditure,Contract Hire and Operating Leases,Vehicles-Hired\Leased,20/05/2021,343007,445.42,Argosy Ltd T/A Andover Self Drive
Cultural & Related,Culture & Heritage,Premises & Asset Management,Premises related Expenditure,Water Services,Water And Sewerage Charges,20/05/2021,339599,538.69,Castle Water Limited
Cultural & Related,Culture & Heritage,Premises & Asset Management,Premises related Expenditure,Water Services,Water And Sewerage Charges,20/05/2021,342815,539.25,Castle Water Limited
Central Services to the Public,Management & Support Services,Community and Leisure ,Supplies & Services,Grants & Subscriptions,Subscriptions,27/05/2021,343950,450,Chief Cultural & Leisure Officers Association
Environmental & Regulatory,Waste & Recycling Management,Environmental,Supplies & Services,Services,Legal Fees,19/05/2021,343816,450,12. CP
Planning & Development,Development Control,Planning & Building,Transport Related Expenditure,Contract Hire and Operating Leases,Officer lease cars,20/05/2021,344021,541.02,Arval Uk Ltd
Cultural & Related,Open Spaces,Community and Leisure ,Supplies & Services,"Equipment, Furniture & Materials",Purchase Equip + Materials,13/05/2021,341003,453.6,Coastal Nets Ltd
Environmental & Regulatory,Waste management,Environmental,Transport Related Expenditure,Direct Transport Costs,Repair Materials,20/05/2021,343024,453.86,Dennis Eagle Ltd
Cultural & Related,Recreation & Sport,Community and Leisure ,Employees,Indirect Employee Expenses,Temporary Staff,06/05/2021,341298,458.46,Adecco Uk Ltd
Cultural & Related,Recreation & Sport,Community and Leisure ,Employees,Indirect Employee Expenses,Temporary Staff,06/05/2021,342101,458.46,Adecco Uk Ltd
Cultural & Related,Recreation & Sport,Community and Leisure ,Employees,Indirect Employee Expenses,Temporary Staff,06/05/2021,342102,458.46,Adecco Uk Ltd
Cultural & Related,Recreation & Sport,Community and Leisure ,Employees,Indirect Employee Expenses,Temporary Staff,20/05/2021,343781,458.46,Adecco Uk Ltd
Cultural & Related,Recreation & Sport,Community and Leisure ,Employees,Indirect Employee Expenses,Temporary Staff,20/05/2021,343785,458.46,Adecco Uk Ltd
Cultural & Related,Culture & Heritage,Premises & Asset Management,Premises related Expenditure,Water Services,Water And Sewerage Charges,06/05/2021,340511,552.92,Augusta Park Community Association
Central Services to the Public,Elections,Legal & Democratic,Premises related Expenditure,Rents,Premises Hire,13/05/2021,343275,560,Chilbolton Village Hall
External Trading Accounts,Property Investments,Premises & Asset Management,Premises related Expenditure,Grounds Maintenance Costs,Grounds Maintenance Contracts,20/05/2021,341288,473.19,Landmarks Sustainability Ltd
Central Services,Corporate & Democratic Core,Corporate & Democratic,Supplies & Services,Communications & Computing,Computer Hardware,27/05/2021,343090,479.43,Exampleit Ltd
Environmental & Regulatory,Regulatory Services,Housing and Environmental Health ,Supplies & Services,"Equipment, Furniture & Materials",Purchase Equip + Materials,27/05/2021,343049,480,Campbell Associates Ltd
Cultural & Related,Recreation & Sport,Premises & Asset Management,Premises related Expenditure,Water Services,Water And Sewerage Charges,20/05/2021,342816,576.25,Castle Water Limited
Central Services to the Public,Elections,Legal & Democratic,Premises related Expenditure,Rents,Premises Hire,13/05/2021,343268,577.5,Picket Twenty Community Association
Cultural & Related,Open Spaces,Environmental,Transport Related Expenditure,Contract Hire and Operating Leases,Vehicles-Hired\Leased,20/05/2021,343027,485.91,Argosy Ltd T/A Andover Self Drive
Cultural & Related,Open Spaces,Environmental,Transport Related Expenditure,Contract Hire and Operating Leases,Vehicles-Hired\Leased,20/05/2021,343028,485.91,Argosy Ltd T/A Andover Self Drive
Cultural & Related,Open Spaces,Environmental,Transport Related Expenditure,Direct Transport Costs,Diesel,20/05/2021,343009,11.79,Argosy Ltd T/A Andover Self Drive
Cultural & Related,Open Spaces,Environmental,Transport Related Expenditure,Contract Hire and Operating Leases,Vehicles-Hired\Leased,20/05/2021,343009,485.91,Argosy Ltd T/A Andover Self Drive
Environmental & Regulatory,Waste & Recycling Management,Environmental,Transport Related Expenditure,Direct Transport Costs,Repair Materials,27/05/2021,344345,500,Adams Morey Ltd
Central Services to the Public,Elections,Legal & Democratic,Premises related Expenditure,Rents,Premises Hire,13/05/2021,343274,600,Romsey Town Council
Environmental & Regulatory,Regulatory Services,Premises & Asset Management,Premises related Expenditure,Water Services,Water And Sewerage Charges,20/05/2021,342812,603.62,Castle Water Limited
External Trading Accounts,Business Parks,Premises & Asset Management,Premises related Expenditure,Water Services,Water And Sewerage Charges,20/05/2021,340708,605.48,Castle Water Limited
Cultural & Related,Recreation & Sport,Community and Leisure ,Employees,Indirect Employee Expenses,Temporary Staff,06/05/2021,341300,505.16,Adecco Uk Ltd
Central Services to the Public,Management & Support Services,Environmental,Supplies & Services,"Clothes, Uniforms & Laundry",Clothing + Uniforms,13/05/2021,343036,210.74,Smi Group
Central Services to the Public,Management & Support Services,Environmental,Supplies & Services,Miscellaneous Expenses,Health And Safety,13/05/2021,343036,295.5,Smi Group
Environmental & Regulatory,Waste management,Environmental,Transport Related Expenditure,Direct Transport Costs,Repair Materials,20/05/2021,343079,508.55,Dennis Eagle Ltd
Cultural & Related,Recreation & Sport,Community and Leisure ,Employees,Indirect Employee Expenses,Temporary Staff,06/05/2021,341294,509.4,Adecco Uk Ltd
Cultural & Related,Recreation & Sport,Community and Leisure ,Employees,Indirect Employee Expenses,Temporary Staff,06/05/2021,341301,509.4,Adecco Uk Ltd
Cultural & Related,Recreation & Sport,Community and Leisure ,Employees,Indirect Employee Expenses,Temporary Staff,06/05/2021,342104,509.4,Adecco Uk Ltd
Cultural & Related,Recreation & Sport,Community and Leisure ,Employees,Indirect Employee Expenses,Temporary Staff,20/05/2021,343784,509.4,Adecco Uk Ltd
Cultural & Related,Recreation & Sport,Community and Leisure ,Employees,Indirect Employee Expenses,Temporary Staff,20/05/2021,343787,509.4,Adecco Uk Ltd
"Highways, Roads & Transport",Parking Services,Plan Pol & Transport,Supplies & Services,Services,Professional Fees,13/05/2021,342209,516.46,Advam (Uk) Limited
Planning & Development,Community Development,Community and Leisure ,Supplies & Services,Grants & Subscriptions,Grants,27/05/2021,344576,620,Wellow Village Hall
Environmental & Regulatory,Waste management,Environmental,Transport Related Expenditure,Direct Transport Costs,Repair Materials,06/05/2021,341399,52.93,Steve Ferris Ltd
Central Services to the Public,Management & Support Services,Environmental,Transport Related Expenditure,Direct Transport Costs,Workshop Consumables,06/05/2021,341399,239.81,Steve Ferris Ltd
Central Services to the Public,Management & Support Services,Environmental,Transport Related Expenditure,Direct Transport Costs,Repair Materials,06/05/2021,341399,226.1,Steve Ferris Ltd
Central Services to the Public,Management & Support Services,Housing and Environmental Health ,Supplies & Services,Services,Training Courses,27/05/2021,338465,530,Catg Ltd
Central Services to the Public,Management & Support Services,Premises & Asset Management,Premises related Expenditure,Energy Costs,Gas,13/05/2021,342274,531.75,Total Gas & Power Ltd
Environmental & Regulatory,Street Cleansing (not chargeable to Highways),Environmental,Supplies & Services,Miscellaneous Expenses,Hazardous / Fly Tipped Waste,27/05/2021,341420,535,Bkp Waste & Recycling Ltd
Environmental & Regulatory,Waste management,Environmental,Transport Related Expenditure,Direct Transport Costs,Repair Materials,20/05/2021,343803,538.36,Adams Morey Ltd
Central Services to the Public,Elections,Legal & Democratic,Premises related Expenditure,Rents,Premises Hire,13/05/2021,343272,650,Raods
"Highways, Roads & Transport",Public Transport,Plan Pol & Transport,Third Party Payments,Transport Operators in Respect of Concessionary Fares,Voluntary Orgs Reimbursement,27/05/2021,344574,652,Romsey Good Neighbours
Central Services to the Public,Management & Support Services,Finance,Supplies & Services,"Printing, Stationery & General Office Expenses",Postage Costs,20/05/2021,342842,543.63,Whistl Uk Ltd
Environmental & Regulatory,Waste management,Environmental,Transport Related Expenditure,Direct Transport Costs,Repair Materials,27/05/2021,343945,551.24,Dennis Eagle Ltd
Central Services to the Public,Management & Support Services,Premises & Asset Management,Third Party Payments,Other Establishments,Private Contractors,06/05/2021,340560,557.94,Options Flooring Ltd
Central Services to the Public,Elections,Legal & Democratic,Supplies & Services,"Printing, Stationery & General Office Expenses",Postage Costs,27/05/2021,344004,560.3,Financial Data Management Plc
Central Services to the Public,Elections,Legal & Democratic,Premises related Expenditure,Rents,Premises Hire,13/05/2021,343252,674,Andover And District Mencap
Environmental & Regulatory,Waste management,Environmental,Transport Related Expenditure,Direct Transport Costs,Repair Materials,27/05/2021,343799,524.7,Dennis Eagle Ltd
Central Services to the Public,Management & Support Services,Environmental,Transport Related Expenditure,Direct Transport Costs,Repair Materials,27/05/2021,343799,39,Dennis Eagle Ltd
Environmental & Regulatory,Waste & Recycling Management,Environmental,Supplies & Services,"Equipment, Furniture & Materials",Purchase Equip + Materials,13/05/2021,341515,567,Spaldings (Uk) Limited
Environmental & Regulatory,Waste management,Environmental,Transport Related Expenditure,Direct Transport Costs,Repair Materials,06/05/2021,342063,569.05,Adams Morey Ltd
Cultural & Related,Recreation & Sport,Community and Leisure ,Employees,Indirect Employee Expenses,Temporary Staff,06/05/2021,341299,577.32,Adecco Uk Ltd
Central Services to the Public,Management & Support Services,Premises & Asset Management,Supplies & Services,Miscellaneous Expenses,Medical Fees,06/05/2021,340669,19,University Hospital Soton Nhs Foundation Trst
Housing Services,Homelessness,Housing and Environmental Health ,Supplies & Services,Miscellaneous Expenses,Medical Fees,06/05/2021,340669,19,University Hospital Soton Nhs Foundation Trst
Cultural & Related,Open Spaces,Community and Leisure ,Supplies & Services,Miscellaneous Expenses,Medical Fees,06/05/2021,340669,19,University Hospital Soton Nhs Foundation Trst
Planning & Development,Development Control,Planning & Building,Supplies & Services,Miscellaneous Expenses,Medical Fees,06/05/2021,340669,51,University Hospital Soton Nhs Foundation Trst
Planning & Development,Planning Policy,Plan Pol & Transport,Supplies & Services,Miscellaneous Expenses,Medical Fees,06/05/2021,340669,265,University Hospital Soton Nhs Foundation Trst
Cultural & Related,Open Spaces,Environmental,Supplies & Services,Miscellaneous Expenses,Medical Fees,06/05/2021,340669,19,University Hospital Soton Nhs Foundation Trst
Environmental & Regulatory,Waste management,Environmental,Supplies & Services,Miscellaneous Expenses,Medical Fees,06/05/2021,340669,271,University Hospital Soton Nhs Foundation Trst
Environmental & Regulatory,Waste management,Environmental,Transport Related Expenditure,Direct Transport Costs,External Garages,13/05/2021,342074,346.13,Dennis Eagle Ltd
Environmental & Regulatory,Waste management,Environmental,Transport Related Expenditure,Direct Transport Costs,Repair Materials,13/05/2021,342074,236.18,Dennis Eagle Ltd
Central Services to the Public,Management & Support Services,Premises & Asset Management,Premises related Expenditure,Water Services,Water And Sewerage Charges,20/05/2021,342817,702.68,Castle Water Limited
Cultural & Related,Recreation & Sport,Community and Leisure ,Employees,Indirect Employee Expenses,Temporary Staff,06/05/2021,341295,585.81,Adecco Uk Ltd
Cultural & Related,Recreation & Sport,Community and Leisure ,Employees,Indirect Employee Expenses,Temporary Staff,06/05/2021,341297,585.81,Adecco Uk Ltd
Cultural & Related,Recreation & Sport,Community and Leisure ,Employees,Indirect Employee Expenses,Temporary Staff,06/05/2021,341303,585.81,Adecco Uk Ltd
Cultural & Related,Recreation & Sport,Community and Leisure ,Employees,Indirect Employee Expenses,Temporary Staff,06/05/2021,342097,585.81,Adecco Uk Ltd
Cultural & Related,Recreation & Sport,Community and Leisure ,Employees,Indirect Employee Expenses,Temporary Staff,06/05/2021,342100,585.81,Adecco Uk Ltd
Cultural & Related,Recreation & Sport,Community and Leisure ,Employees,Indirect Employee Expenses,Temporary Staff,20/05/2021,343780,585.81,Adecco Uk Ltd
Cultural & Related,Recreation & Sport,Community and Leisure ,Employees,Indirect Employee Expenses,Temporary Staff,20/05/2021,343782,585.81,Adecco Uk Ltd
Environmental & Regulatory,Waste & Recycling Management,Environmental,Supplies & Services,"Equipment, Furniture & Materials",Purchase Equip + Materials,20/05/2021,343015,590,Helping Hand Company
Planning & Development,Development Control,Planning & Building,Supplies & Services,Services,Project Consultancy - Policy,13/05/2021,343018,600,Reading Agricultural Consultants Ltd
Central Services to the Public,Local Tax Collection,Revenues,Supplies & Services,Communications & Computing,Software Maintenance,06/05/2021,342095,600,Northgate Public Services Uk Ltd
Central Services to the Public,Management & Support Services,Finance,Supplies & Services,"Printing, Stationery & General Office Expenses",Postage Costs,27/05/2021,343802,606.16,Whistl Uk Ltd
External Trading Accounts,Business Parks,Premises & Asset Management,Supplies & Services,Communications & Computing,Computer Hardware,27/05/2021,343903,606.27,Nouveau Solutions Ltd
Planning & Development,Economic Development,Planning Policy & Economic Development ,Supplies & Services,Grants & Subscriptions,Grants,06/05/2021,342311,750,The Food Forager Ltd
Planning & Development,Economic Development,Planning Policy & Economic Development ,Supplies & Services,Grants & Subscriptions,Grants,19/05/2021,343915,750,Absolar Solutions Ltd (Phil Wu)
Environmental & Regulatory,Regulatory Services,Premises & Asset Management,Supplies & Services,Grants & Subscriptions,Contributions,27/05/2021,344347,750,Grilled Cheese Cafe Ltd
Central Services to the Public,Management & Support Services,Premises & Asset Management,Premises related Expenditure,Repairs Alterations & Maintenance of Buildings,General Repairs,27/05/2021,337471,625,Personal Data - Data Protection Act 1998
Planning & Development,Economic Development,Planning Policy & Economic Development ,Supplies & Services,Grants & Subscriptions,Grants,13/05/2021,343243,750,Wessex Ear Care
Cultural & Related,Recreation & Sport,Community and Leisure ,Employees,Indirect Employee Expenses,Temporary Staff,06/05/2021,342103,636.75,Adecco Uk Ltd
Central Services to the Public,Management & Support Services,Premises & Asset Management,Third Party Payments,Other Establishments,Private Contractors,27/05/2021,340572,640.18,Tsg Building Services Plc
Central Services to the Public,Management & Support Services,HR Services,Supplies & Services,Services,External Training Consultants,27/05/2021,344327,647.5,Yellowday Training Ltd
Cultural & Related,Open Spaces,Community and Leisure ,Supplies & Services,"Equipment, Furniture & Materials",Purchase Equip + Materials,06/05/2021,342254,650,Evergreen Rabbit Control
Central Services to the Public,Management & Support Services,IT,Supplies & Services,Communications & Computing,Mobile Telephone Charges,27/05/2021,343819,643.42,Vodafone Limited
Cultural & Related,Recreation & Sport,Community and Leisure ,Supplies & Services,Communications & Computing,Mobile Telephone Charges,27/05/2021,343819,7,Vodafone Limited
"Highways, Roads & Transport",Highways and roads - maintenance,Plan Pol & Transport,Supplies & Services,Communications & Computing,Mobile Telephone Charges,27/05/2021,343819,7,Vodafone Limited
External Trading Accounts,Economic Development,Premises & Asset Management,Supplies & Services,Miscellaneous Expenses,Promotions / Special Events,27/05/2021,344479,800,Ballsportz
Cultural & Related,Open Spaces,Environmental,Supplies & Services,Communications & Computing,Mobile Telephone Charges,27/05/2021,343828,210.34,Vodafone Limited
Environmental & Regulatory,Waste & Recycling Management,Environmental,Supplies & Services,Communications & Computing,Mobile Telephone Charges,27/05/2021,343828,63.03,Vodafone Limited
Environmental & Regulatory,Street Cleansing (not chargeable to Highways),Environmental,Supplies & Services,Communications & Computing,Mobile Telephone Charges,27/05/2021,343828,140,Vodafone Limited
Environmental & Regulatory,Waste management,Environmental,Supplies & Services,Communications & Computing,Mobile Telephone Charges,27/05/2021,343828,178.5,Vodafone Limited
Central Services to the Public,Management & Support Services,Environmental,Supplies & Services,Communications & Computing,Mobile Telephone Charges,27/05/2021,343828,45.5,Vodafone Limited
Central Services to the Public,Management & Support Services,Environmental,Supplies & Services,Communications & Computing,Mobile Telephone Charges,27/05/2021,343828,31.5,Vodafone Limited
Environmental & Regulatory,Waste management,Environmental,Employees,Indirect Employee Expenses,Agency Staff - Waged Posts,27/05/2021,344322,672.19,24-7 Staffing
Central Services to the Public,Management & Support Services,Finance,Supplies & Services,"Printing, Stationery & General Office Expenses",Postage Costs,06/05/2021,342214,679.71,Pitney Bowes Finance Ltd
Cultural & Related,Open Spaces,Environmental,Supplies & Services,Communications & Computing,Mobile Telephone Charges,06/05/2021,340818,211.69,Vodafone Limited
Environmental & Regulatory,Waste & Recycling Management,Environmental,Supplies & Services,Communications & Computing,Mobile Telephone Charges,06/05/2021,340818,74.25,Vodafone Limited
Environmental & Regulatory,Street Cleansing (not chargeable to Highways),Environmental,Supplies & Services,Communications & Computing,Mobile Telephone Charges,06/05/2021,340818,143.83,Vodafone Limited
Environmental & Regulatory,Waste management,Environmental,Supplies & Services,Communications & Computing,Mobile Telephone Charges,06/05/2021,340818,178.5,Vodafone Limited
Central Services to the Public,Management & Support Services,Environmental,Supplies & Services,Communications & Computing,Mobile Telephone Charges,06/05/2021,340818,45.5,Vodafone Limited
Central Services to the Public,Management & Support Services,Environmental,Supplies & Services,Communications & Computing,Mobile Telephone Charges,06/05/2021,340818,31.5,Vodafone Limited
Central Services to the Public,Local Tax Collection,Revenues,Supplies & Services,Communications & Computing,Software Maintenance,06/05/2021,340986,689.58,Truecommerce (Coventry) Ltd
Cultural & Related,Open Spaces,Environmental,Supplies & Services,Miscellaneous Expenses,Waste Collection,06/05/2021,340523,696.24,Collard Enviromental Ltd
Central Services to the Public,Management & Support Services,HR Services,Supplies & Services,Services,Training Courses,13/05/2021,343047,700,West Midlands Employers
"Highways, Roads & Transport",Public Transport,Plan Pol & Transport,Third Party Payments,Transport Operators in Respect of Concessionary Fares,Voluntary Orgs Reimbursement,13/05/2021,343099,846,Thorngate Village Care Group
Environmental & Regulatory,Waste management,Environmental,Transport Related Expenditure,Direct Transport Costs,Repair Materials,13/05/2021,342088,705.51,Dennis Eagle Ltd
Central Services to the Public,Management & Support Services,Premises & Asset Management,Premises related Expenditure,Repairs Alterations & Maintenance of Buildings,Planned Maintenance - Non Est,06/05/2021,342118,708,Hcl Safety Ltd
Cultural & Related,Open Spaces,Environmental,Supplies & Services,Miscellaneous Expenses,Waste Collection,27/05/2021,343742,712.32,Collard Enviromental Ltd
Cultural & Related,Recreation & Sport,Community and Leisure ,Employees,Indirect Employee Expenses,Temporary Staff,06/05/2021,342098,713.16,Adecco Uk Ltd
Cultural & Related,Recreation & Sport,Community and Leisure ,Employees,Indirect Employee Expenses,Temporary Staff,20/05/2021,343783,713.16,Adecco Uk Ltd
Environmental & Regulatory,"Cemetery, Cremation and Mortuary Services",Community and Leisure ,Supplies & Services,Miscellaneous Expenses,National Assist Act Burials,12/05/2021,343052,862,Dunnings Funeral Services
Cultural & Related,Open Spaces,Environmental,Supplies & Services,"Equipment, Furniture & Materials",Purchases for playgrounds,20/05/2021,341431,719.82,Ahs Ltd
Environmental & Regulatory,Street Cleansing (not chargeable to Highways),Environmental,Supplies & Services,Miscellaneous Expenses,Waste Collection,13/05/2021,341421,725,Bkp Waste & Recycling Ltd
Planning & Development,Planning Policy,Plan Pol & Transport,Supplies & Services,Communications & Computing,Computer Hardware,06/05/2021,342072,727.67,Exampleit Ltd
Planning & Development,Planning Policy,Plan Pol & Transport,Supplies & Services,Communications & Computing,Computer Hardware,13/05/2021,342287,727.67,Exampleit Ltd
Central Services to the Public,Management & Support Services,Environmental,Transport Related Expenditure,Direct Transport Costs,Oils,13/05/2021,343029,729.8,Fuchs Lubricants (Uk) Plc
Environmental & Regulatory,Waste management,Environmental,Supplies & Services,Miscellaneous Expenses,Vehicle insurance claims,20/05/2021,344005,880,Sandalwood Property Services
Environmental & Regulatory,Waste management,Environmental,Transport Related Expenditure,Direct Transport Costs,Repair Materials,20/05/2021,343807,736.46,Adams Morey Ltd
Environmental & Regulatory,Regulatory Services,Legal & Democratic,Supplies & Services,Grants & Subscriptions,Subscriptions,27/05/2021,339502,740,J B & Co
Central Services,Corporate & Democratic Core,Corporate & Democratic,Supplies & Services,Services,Professional Advice,27/05/2021,342299,750,Dc Commercial Solicitors
Environmental & Regulatory,Regulatory Services,Premises & Asset Management,Supplies & Services,Grants & Subscriptions,Contributions,27/05/2021,344348,750,Marstons Pubs Ltd
Central Services to the Public,Management & Support Services,Premises & Asset Management,Supplies & Services,Communications & Computing,Telephone Tracking System,20/05/2021,342268,48,Teletrac Navman (Uk) Ltd
Environmental & Regulatory,Regulatory Services,Housing and Environmental Health ,Supplies & Services,Communications & Computing,Telephone Tracking System,20/05/2021,342268,6,Teletrac Navman (Uk) Ltd
Environmental & Regulatory,Regulatory Services,Housing and Environmental Health ,Supplies & Services,Communications & Computing,Telephone Tracking System,20/05/2021,342268,12,Teletrac Navman (Uk) Ltd
Cultural & Related,Open Spaces,Community and Leisure ,Supplies & Services,Communications & Computing,Telephone Tracking System,20/05/2021,342268,6,Teletrac Navman (Uk) Ltd
Cultural & Related,Open Spaces,Community and Leisure ,Supplies & Services,Communications & Computing,Telephone Tracking System,20/05/2021,342268,6,Teletrac Navman (Uk) Ltd
"Highways, Roads & Transport",Parking Services,Plan Pol & Transport,Supplies & Services,Communications & Computing,Telephone Tracking System,20/05/2021,342268,12,Teletrac Navman (Uk) Ltd
Cultural & Related,Open Spaces,Environmental,Supplies & Services,Communications & Computing,Telephone Tracking System,20/05/2021,342268,279.99,Teletrac Navman (Uk) Ltd
Environmental & Regulatory,Waste & Recycling Management,Environmental,Supplies & Services,Communications & Computing,Telephone Tracking System,20/05/2021,342268,36,Teletrac Navman (Uk) Ltd
Environmental & Regulatory,Street Cleansing (not chargeable to Highways),Environmental,Supplies & Services,Communications & Computing,Telephone Tracking System,20/05/2021,342268,168.7,Teletrac Navman (Uk) Ltd
Environmental & Regulatory,Waste management,Environmental,Supplies & Services,Communications & Computing,Telephone Tracking System,20/05/2021,342268,153.8,Teletrac Navman (Uk) Ltd
Environmental & Regulatory,Waste management,Environmental,Supplies & Services,Communications & Computing,Telephone Tracking System,20/05/2021,342268,12,Teletrac Navman (Uk) Ltd
Central Services to the Public,Management & Support Services,Environmental,Supplies & Services,Communications & Computing,Telephone Tracking System,20/05/2021,342268,18,Teletrac Navman (Uk) Ltd
Environmental & Regulatory,Waste management,Environmental,Transport Related Expenditure,Direct Transport Costs,Repair Materials,06/05/2021,341436,761.44,Dennis Eagle Ltd
Environmental & Regulatory,Street Cleansing (not chargeable to Highways),Environmental,Transport Related Expenditure,Direct Transport Costs,Repair Materials,13/05/2021,342841,701.78,Gm Sweepers Uk Ltd
Central Services to the Public,Management & Support Services,Environmental,Transport Related Expenditure,Direct Transport Costs,Repair Materials,13/05/2021,342841,60.78,Gm Sweepers Uk Ltd
Central Services to the Public,Management & Support Services,Premises & Asset Management,Supplies & Services,Miscellaneous Expenses,Waste Collection,20/05/2021,343792,764.55,Suez Recycling And Recovery Uk Ltd
Central Services to the Public,Management & Support Services,IT,Supplies & Services,Communications & Computing,Communication Links,27/05/2021,342054,765.94,Nominet
External Trading Accounts,Business Parks,Premises & Asset Management,Supplies & Services,Miscellaneous Expenses,Waste Collection,13/05/2021,342830,767.7,Basingstoke Skip Hire & Sthrn Waste Mgt Ltd
Environmental & Regulatory,Waste management,Environmental,Employees,Indirect Employee Expenses,Agency Staff - Waged Posts,13/05/2021,341259,772.56,Simple Recruitment Services Ltd
Central Services to the Public,Management & Support Services,Environmental,Supplies & Services,Services,Training Courses,20/05/2021,343791,435,Mot Learning Services
Central Services to the Public,Management & Support Services,Environmental,Supplies & Services,Services,Professional Fees,20/05/2021,343791,340,Mot Learning Services
Cultural & Related,Open Spaces,Environmental,Supplies & Services,"Equipment, Furniture & Materials",Purchase Equip + Materials,27/05/2021,344001,783,Natural Stone & Timber T/A W H Berry & Son
Cultural & Related,Open Spaces,Environmental,Supplies & Services,"Equipment, Furniture & Materials",Purchase Equip + Materials,27/05/2021,343766,787.5,Spaldings (Uk) Limited
Central Services to the Public,Local Tax Collection,Revenues,Supplies & Services,Services,External Training Consultants,26/05/2021,343947,800,Airey Consultancy Services Ltd
"Highways, Roads & Transport",Highways and roads - maintenance,Plan Pol & Transport,Premises related Expenditure,Repairs Alterations & Maintenance of Buildings,Highways Repairs,27/05/2021,339518,804.4,Bulpitt Print Limited **Use 134*
Environmental & Regulatory,Street Cleansing (not chargeable to Highways),Environmental,Transport Related Expenditure,Direct Transport Costs,Repair Materials,13/05/2021,341445,820.04,Lister Wilder
Cultural & Related,Recreation & Sport,Premises & Asset Management,Premises related Expenditure,Water Services,Water And Sewerage Charges,20/05/2021,342813,971.06,Castle Water Limited
Environmental & Regulatory,Waste management,Environmental,Transport Related Expenditure,Direct Transport Costs,Tyres,20/05/2021,343012,240,Tructyre Ats
Central Services to the Public,Management & Support Services,Environmental,Transport Related Expenditure,Direct Transport Costs,Repair Materials,20/05/2021,343012,583.68,Tructyre Ats
Central Services to the Public,Management & Support Services,Premises & Asset Management,Premises related Expenditure,Energy Costs,Gas,13/05/2021,342273,829.24,Total Gas & Power Ltd
Planning & Development,Community Development,Community and Leisure ,Supplies & Services,Grants & Subscriptions,Grants,06/05/2021,340754,1000,Nursling & Rownhams Community Association
Central Services to the Public,Management & Support Services,Legal & Democratic,Supplies & Services,"Printing, Stationery & General Office Expenses",Stationery,06/05/2021,339508,77.38,Lyreco Uk Ltd
Central Services to the Public,Elections,Legal & Democratic,Supplies & Services,"Printing, Stationery & General Office Expenses",Stationery,06/05/2021,339508,756.44,Lyreco Uk Ltd
Environmental & Regulatory,Regulatory Services,Premises & Asset Management,Premises related Expenditure,Water Services,Water And Sewerage Charges,20/05/2021,339600,1017.32,Castle Water Limited
Environmental & Regulatory,Waste management,Environmental,Supplies & Services,Miscellaneous Expenses,Vehicle insurance claims,20/05/2021,342843,850.34,Argosy Ltd T/A Andover Self Drive
Environmental & Regulatory,Waste management,Environmental,Employees,Indirect Employee Expenses,Agency Staff - Waged Posts,20/05/2021,343767,721.4,24-7 Staffing
Environmental & Regulatory,Waste management,Environmental,Employees,Indirect Employee Expenses,Agency Staff - Waged Posts,20/05/2021,343767,175.42,24-7 Staffing
Environmental & Regulatory,Waste management,Environmental,Employees,Indirect Employee Expenses,Agency Staff - Waged Posts,13/05/2021,343013,915.09,24-7 Staffing
Central Services to the Public,Management & Support Services,Premises & Asset Management,Supplies & Services,"Equipment, Furniture & Materials",Maintenance Of Tools,27/05/2021,344374,923.35,High Pressure Hire
Environmental & Regulatory,Waste management,Environmental,Transport Related Expenditure,Direct Transport Costs,Licences,20/05/2021,343010,1113,Dennis Eagle Ltd
Cultural & Related,Recreation & Sport,Community and Leisure ,Premises related Expenditure,Cleaning and domestic supplies,Contract Cleaning - Non Estates,27/05/2021,344378,936,Hi-Spec Facilities Services Plc
Central Services to the Public,Management & Support Services,Finance,Supplies & Services,"Printing, Stationery & General Office Expenses",Postage Costs,06/05/2021,341442,940.27,Whistl Uk Ltd
Cultural & Related,Culture & Heritage,Community and Leisure ,Third Party Payments,Private contractors,Main Contractor Costs,27/05/2021,344315,950,Real Estate Strategies Ltd
Environmental & Regulatory,Street Cleansing (not chargeable to Highways),Environmental,Third Party Payments,Other Establishments,Private Contractors,06/05/2021,341512,950,Graffiti Removal Ltd
Central Services to the Public,Elections,Legal & Democratic,Supplies & Services,"Equipment, Furniture & Materials",Equipment Hire,20/05/2021,343075,1177.8,Swift Hire (South & South East) Ltd
Central Services to the Public,Management & Support Services,Premises & Asset Management,Premises related Expenditure,Repairs Alterations & Maintenance of Buildings,Planned Maintenance - Non Est,27/05/2021,344372,1000,Tls Fire & Security Llp
Environmental & Regulatory,Regulatory Services,Housing and Environmental Health ,Supplies & Services,"Equipment, Furniture & Materials",Purchase Equip + Materials,27/05/2021,340132,1003.9,Killgerm Chemicals Ltd
Planning & Development,Development Control,Planning & Building,Supplies & Services,Services,Legal Fees,06/05/2021,341508,1005,Cornerstone Barristers
Central Services to the Public,Elections,Legal & Democratic,Supplies & Services,Catering,Catering,06/05/2021,341712,1211,Edwards And Ward Ltd
Environmental & Regulatory,Community Development,Community and Leisure ,Supplies & Services,Miscellaneous Expenses,Promotions / Special Events,27/05/2021,344325,1020,Talbot Walker Llp
Cultural & Related,Open Spaces,Environmental,Supplies & Services,"Equipment, Furniture & Materials",Purchases for playgrounds,27/05/2021,343043,1020.88,Sutcliffe Play Ltd
Cultural & Related,Open Spaces,Environmental,Supplies & Services,"Equipment, Furniture & Materials",Purchase Equip + Materials,27/05/2021,343906,1035.9,Fleet (Line Markers) Ltd
Central Services to the Public,Management & Support Services,Finance,Supplies & Services,Services,Project Consultancy - Policy,20/05/2021,343812,1055,Public Sector Consultants Ltd
Cultural & Related,Culture & Heritage,Community and Leisure ,Premises related Expenditure,Energy Costs,Electricity,13/05/2021,342835,714.91,Sparsholt College Hampshire
Cultural & Related,Culture & Heritage,Community and Leisure ,Premises related Expenditure,Energy Costs,Gas,13/05/2021,342835,180.94,Sparsholt College Hampshire
Cultural & Related,Culture & Heritage,Community and Leisure ,Premises related Expenditure,Water Services,Water And Sewerage Charges,13/05/2021,342835,254.34,Sparsholt College Hampshire
Environmental & Regulatory,Regulatory Services,Premises & Asset Management,Premises related Expenditure,Water Services,Water And Sewerage Charges,20/05/2021,339931,1329.6,Castle Water Limited
Environmental & Regulatory,Waste management,Environmental,Employees,Indirect Employee Expenses,Agency Staff - Waged Posts,06/05/2021,342116,1108.27,24-7 Staffing
Central Services to the Public,Local Tax Collection,Revenues,Supplies & Services,Services,Professional Fees,06/05/2021,342060,150,Ross & Roberts
Environmental & Regulatory,Waste management,Environmental,Supplies & Services,"Equipment, Furniture & Materials",Purchase Equip + Materials,20/05/2021,343897,1130,Jfc Manufacturing (Europe) Ltd
Central Services to the Public,Management & Support Services,Premises & Asset Management,Transport Related Expenditure,Direct Transport Costs,Repair Materials,20/05/2021,343034,11.6,Md Services (Andover) Ltd
Environmental & Regulatory,Regulatory Services,Housing and Environmental Health ,Transport Related Expenditure,Direct Transport Costs,Repair Materials,20/05/2021,343034,4.64,Md Services (Andover) Ltd
Environmental & Regulatory,Regulatory Services,Housing and Environmental Health ,Transport Related Expenditure,Direct Transport Costs,Repair Materials,20/05/2021,343034,4.64,Md Services (Andover) Ltd
"Highways, Roads & Transport",Parking Services,Plan Pol & Transport,Transport Related Expenditure,Direct Transport Costs,Repair Materials,20/05/2021,343034,4.64,Md Services (Andover) Ltd
Cultural & Related,Open Spaces,Environmental,Transport Related Expenditure,Direct Transport Costs,Repair Materials,20/05/2021,343034,95.12,Md Services (Andover) Ltd
Environmental & Regulatory,Street Cleansing (not chargeable to Highways),Environmental,Transport Related Expenditure,Direct Transport Costs,Repair Materials,20/05/2021,343034,58,Md Services (Andover) Ltd
Environmental & Regulatory,Waste management,Environmental,Transport Related Expenditure,Direct Transport Costs,Repair Materials,20/05/2021,343034,39.44,Md Services (Andover) Ltd
Environmental & Regulatory,Waste management,Environmental,Transport Related Expenditure,Direct Transport Costs,Repair Materials,20/05/2021,343034,6.96,Md Services (Andover) Ltd
Central Services to the Public,Management & Support Services,Environmental,Transport Related Expenditure,Direct Transport Costs,Workshop Consumables,20/05/2021,343034,873.76,Md Services (Andover) Ltd
Central Services to the Public,Management & Support Services,Environmental,Transport Related Expenditure,Direct Transport Costs,Repair Materials,20/05/2021,343034,26.2,Md Services (Andover) Ltd
Central Services to the Public,Management & Support Services,Environmental,Transport Related Expenditure,Direct Transport Costs,Repair Materials,20/05/2021,343034,6.96,Md Services (Andover) Ltd
"Highways, Roads & Transport",Public Transport,Plan Pol & Transport,Third Party Payments,Transport Operators in Respect of Concessionary Fares,Voluntary Orgs Reimbursement,06/05/2021,340512,1361,Andover Neighbourcare
Central Services to the Public,Management & Support Services,Premises & Asset Management,Third Party Payments,Other Establishments,Private Contractors,27/05/2021,344358,1166.67,M S Plumbing And Heating Ltd
Central Services to the Public,Management & Support Services,Premises & Asset Management,Premises related Expenditure,Repairs Alterations & Maintenance of Buildings,General Repairs,27/05/2021,339894,1172.59,Sse Contracting Ltd
Environmental & Regulatory,Regulatory Services,Housing and Environmental Health ,Supplies & Services,Grants and subscriptions,Capital Grants,13/05/2021,343246,1414.31,Northfield Property Solutions Limited
Environmental & Regulatory,"Cemetery, Cremation and Mortuary Services",Community and Leisure ,Supplies & Services,Miscellaneous Expenses,National Assist Act Burials,06/05/2021,342480,1430,A H Cheater Ltd Funeral Directors
"Highways, Roads & Transport",Highways and roads - maintenance,Plan Pol & Transport,Third Party Payments,Private contractors,Main Contractor Costs,06/05/2021,342257,1229.44,Openreach Bt
Environmental & Regulatory,Regulatory Services,Housing and Environmental Health ,Supplies & Services,Grants and subscriptions,Capital Grants,20/05/2021,343920,1494.72,Architectural Survey Services Ltd
Planning & Development,Economic Development,Planning Policy & Economic Development ,Supplies & Services,Grants & Subscriptions,Contributions,20/05/2021,343957,1500,Ebp South Ltd
Cultural & Related,Open Spaces,Environmental,Transport Related Expenditure,Direct Transport Costs,External Garages,20/05/2021,340831,472.5,Loxston Groundcare Ltd
Cultural & Related,Open Spaces,Environmental,Transport Related Expenditure,Direct Transport Costs,Tyres,20/05/2021,340831,853.6,Loxston Groundcare Ltd
Central Services to the Public,Management & Support Services,IT,Supplies & Services,Communications & Computing,Land Line Telephone Charges,27/05/2021,343076,1332.8,Gamma
Environmental & Regulatory,Waste management,Environmental,Transport Related Expenditure,Direct Transport Costs,Repair Materials,27/05/2021,344019,1341.38,Dennis Eagle Ltd
Environmental & Regulatory,Waste management,Environmental,Transport Related Expenditure,Direct Transport Costs,External Garages,27/05/2021,344483,455,Bodyshop24
Environmental & Regulatory,Waste management,Environmental,Transport Related Expenditure,Direct Transport Costs,Repair Materials,27/05/2021,344483,941.9,Bodyshop24
Planning & Development,Planning Policy,Plan Pol & Transport,Supplies & Services,Services,Legal Fees,06/05/2021,341513,1400,Cornerstone Barristers
Central Services to the Public,Management & Support Services,Environmental,Supplies & Services,Grants & Subscriptions,Subscriptions,06/05/2021,341434,1400,Freight Transport Association
Central Services to the Public,Management & Support Services,Environmental,Transport Related Expenditure,Direct Transport Costs,Red Derv,13/05/2021,342082,1447.2,Wp Group Limited
Central Services to the Public,Management & Support Services,Premises & Asset Management,Third Party Payments,Other Establishments,Private Contractors,20/05/2021,343752,1458.33,M S Plumbing And Heating Ltd
Central Services to the Public,Management & Support Services,Premises & Asset Management,Premises related Expenditure,Energy Costs,Gas,13/05/2021,342269,1475.25,Total Gas & Power Ltd
"Highways, Roads & Transport",Highways and roads - maintenance,Plan Pol & Transport,Third Party Payments,Private contractors,Main Contractor Costs,06/05/2021,340555,1500,Stone King Llp
Cultural & Related,Culture & Heritage,Community and Leisure ,Supplies & Services,"Printing, Stationery & General Office Expenses",Licences / Affiliation Fees,06/05/2021,341492,1508.81,Ppl Prs Ltd
"Highways, Roads & Transport",Public Transport,Plan Pol & Transport,Third Party Payments,Transport Operators in Respect of Concessionary Fares,Voluntary Orgs Reimbursement,13/05/2021,342797,1863,Andover Neighbourcare
Central Services to the Public,Management & Support Services,Finance,Supplies & Services,"Printing, Stationery & General Office Expenses",Postage Costs,13/05/2021,342222,1568.34,Whistl Uk Ltd
Environmental & Regulatory,Waste & Recycling Management,Environmental,Transport Related Expenditure,Direct Transport Costs,External Garages,27/05/2021,344484,560,Bodyshop24
Environmental & Regulatory,Waste & Recycling Management,Environmental,Transport Related Expenditure,Direct Transport Costs,Repair Materials,27/05/2021,344484,1036.38,Bodyshop24
Cultural & Related,Culture & Heritage,Community and Leisure ,Supplies & Services,Services,Professional Fees,06/05/2021,341523,2000,Point Line Plane Glassware
Environmental & Regulatory,Waste management,Environmental,Employees,Indirect Employee Expenses,Agency Staff - Waged Posts,20/05/2021,343763,1137.11,24-7 Staffing
Environmental & Regulatory,Waste management,Environmental,Employees,Indirect Employee Expenses,Agency Staff - Waged Posts,20/05/2021,343763,559.68,24-7 Staffing
Environmental & Regulatory,Waste management,Environmental,Transport Related Expenditure,Direct Transport Costs,Repair Materials,27/05/2021,343946,1702.5,Dennis Eagle Ltd
External Trading Accounts,Business Parks,Premises & Asset Management,Premises related Expenditure,Repairs Alterations & Maintenance of Buildings,Building Maint - Non Estates,06/05/2021,342085,1735.5,Wessex Response
Environmental & Regulatory,Waste management,Environmental,Transport Related Expenditure,Direct Transport Costs,External Garages,27/05/2021,344331,840.34,Dennis Eagle Ltd
Environmental & Regulatory,Waste management,Environmental,Transport Related Expenditure,Direct Transport Costs,Repair Materials,27/05/2021,344331,905.07,Dennis Eagle Ltd
External Trading Accounts,Business Parks,Premises & Asset Management,Premises related Expenditure,Energy Costs,Electricity,13/05/2021,341498,125.19,Hampshire County Council
Cultural & Related,Recreation & Sport,Premises & Asset Management,Premises related Expenditure,Energy Costs,Electricity,13/05/2021,341498,118.96,Hampshire County Council
Cultural & Related,Open Spaces,Community and Leisure ,Premises related Expenditure,Energy Costs,Electricity,13/05/2021,341498,505.84,Hampshire County Council
Cultural & Related,Culture & Heritage,Community and Leisure ,Premises related Expenditure,Energy Costs,Electricity,13/05/2021,341498,143.1,Hampshire County Council
"Highways, Roads & Transport",Highways and roads - maintenance,Plan Pol & Transport,Premises related Expenditure,Energy Costs,Electricity,13/05/2021,341498,178.58,Hampshire County Council
"Highways, Roads & Transport",Parking Services,Plan Pol & Transport,Premises related Expenditure,Energy Costs,Electricity,13/05/2021,341498,674.18,Hampshire County Council
Central Services to the Public,Management & Support Services,Revenues,Supplies & Services,Miscellaneous Expenses,Security Services,13/05/2021,343039,47.1,Jade Security Services Ltd
"Highways, Roads & Transport",Parking Services,Plan Pol & Transport,Supplies & Services,Services,Professional Fees,13/05/2021,343039,1711.5,Jade Security Services Ltd
Central Services to the Public,Management & Support Services,Environmental,Transport Related Expenditure,Direct Transport Costs,Repair Materials,13/05/2021,342279,1770.8,Terberg Matec Uk Limited
Central Services to the Public,Management & Support Services,Finance,Employees,Direct Employee Expenses,Shared service staffing costs,13/05/2021,342846,1850,Portsmouth City Council
Environmental & Regulatory,Street Cleansing (not chargeable to Highways),Environmental,Third Party Payments,Other Establishments,Private Contractors,06/05/2021,342076,1860,Forest Traffic Services Ltd
Environmental & Regulatory,Waste management,Environmental,Supplies & Services,"Equipment, Furniture & Materials",Purchase Equip + Materials,20/05/2021,339078,1861.54,Egbert H Taylor & Co Ltd
Cultural & Related,Tourism,Planning Policy & Economic Development ,Supplies & Services,"Printing, Stationery & General Office Expenses",External Printing,06/05/2021,340133,2253,Bulpitt Print Ltd
Planning & Development,Development Control,Planning & Building,Third Party Payments,Commuted Sum,CIL Contribution,06/05/2021,342303,2268,Wellow Parish Council
Central Services,Corporate & Democratic Core,Corporate & Democratic,Supplies & Services,Miscellaneous Expenses,Bank Charges,27/05/2021,341314,1895,District Councils' Network
Central Services to the Public,Management & Support Services,Environmental,Transport Related Expenditure,Direct Transport Costs,Repair Materials,27/05/2021,343810,1924,Terberg Matec Uk Limited
Central Services to the Public,Elections,Legal & Democratic,Supplies & Services,"Printing, Stationery & General Office Expenses",Postage Costs,20/05/2021,343074,2351.78,Royal Mail Group Ltd
Central Services to the Public,Management & Support Services,Premises & Asset Management,Third Party Payments,Other Establishments,Private Contractors,20/05/2021,343753,1961.74,Tsg Building Services Plc
Central Services to the Public,Elections,Legal & Democratic,Premises related Expenditure,Rents,Premises Hire,27/05/2021,343988,2364,Wernick Event Hire Ltd
Central Services to the Public,Elections,Legal & Democratic,Premises related Expenditure,Rents,Premises Hire,27/05/2021,343989,2364,Wernick Event Hire Ltd
Central Services to the Public,Elections,Legal & Democratic,Premises related Expenditure,Rents,Premises Hire,27/05/2021,343990,2364,Wernick Event Hire Ltd
Central Services to the Public,Elections,Legal & Democratic,Supplies & Services,"Equipment, Furniture & Materials",Purchase Equip + Materials,13/05/2021,339613,2003,Smi Group
Cultural & Related,Open Spaces,Community and Leisure ,Premises related Expenditure,Grounds Maintenance Costs,Non Contract Tree Works,20/05/2021,343894,2100,The Arboricultural Co Ltd
Central Services to the Public,Management & Support Services,Premises & Asset Management,Premises related Expenditure,Energy Costs,Gas,13/05/2021,341417,2171.45,Total Gas & Power Ltd
Central Services to the Public,Management & Support Services,IT,Supplies & Services,"Equipment, Furniture & Materials",IT Supp and Serv AMP,27/05/2021,342288,2183.01,Exampleit Ltd
Environmental & Regulatory,Regulatory Services,Housing and Environmental Health ,Supplies & Services,Miscellaneous Expenses,Kennel fees,13/05/2021,342219,2322.33,Three Oak Boarding Kennels
Central Services to the Public,Management & Support Services,Premises & Asset Management,Third Party Payments,Other Establishments,Private Contractors,27/05/2021,343754,2370.39,Andover Glass Works Ltd
Central Services to the Public,Management & Support Services,HR Services,Third Party Payments,Other Local Authorities,Shared Service Contract Costs,27/05/2021,341509,2396.16,Mhr International Uk Ltd
Central Services to the Public,Management & Support Services,IT,Supplies & Services,Communications & Computing,Software Maintenance,20/05/2021,343743,2418.46,Winchester City Council
Planning & Development,Development Control,Planning & Building,Employees,Indirect Employee Expenses,Temporary Staff,06/05/2021,342300,2978.65,Wadey Trees
Environmental & Regulatory,Waste & Recycling Management,Environmental,Transport Related Expenditure,Direct Transport Costs,Tyres,20/05/2021,343794,1030.52,Tructyre Ats
Environmental & Regulatory,Waste management,Environmental,Transport Related Expenditure,Direct Transport Costs,Tyres,20/05/2021,343794,1056.77,Tructyre Ats
Central Services to the Public,Management & Support Services,Environmental,Transport Related Expenditure,Direct Transport Costs,Repair Materials,20/05/2021,343794,416.7,Tructyre Ats
Central Services to the Public,Management & Support Services,Environmental,Transport Related Expenditure,Direct Transport Costs,Diesel,20/05/2021,343108,2536.51,Wp Group Limited
Central Services to the Public,Elections,Legal & Democratic,Supplies & Services,"Printing, Stationery & General Office Expenses",Postage Costs,27/05/2021,344006,3097.72,Financial Data Management Plc
Planning & Development,Community Development,Community and Leisure ,Supplies & Services,Grants & Subscriptions,Grants,20/05/2021,344089,3121.15,Andover Cricket Club
Central Services to the Public,Management & Support Services,Premises & Asset Management,Third Party Payments,Other Establishments,Contract Catering,27/05/2021,343761,2679.27,Edwards And Ward Ltd
Environmental & Regulatory,Regulatory Services,Housing and Environmental Health ,Supplies & Services,Grants and subscriptions,Capital Grants,13/05/2021,343245,3250,Liftech Systems (Se) Ltd
Central Services to the Public,Management & Support Services,Environmental,Supplies & Services,Communications & Computing,Software Maintenance,06/05/2021,341493,2780,Impact Tuning And Diagnostics
Environmental & Regulatory,Waste management,Environmental,Transport Related Expenditure,Direct Transport Costs,External Garages,27/05/2021,344384,273,Terberg Matec Uk Limited
Environmental & Regulatory,Waste management,Environmental,Transport Related Expenditure,Direct Transport Costs,Repair Materials,27/05/2021,344384,2510.39,Terberg Matec Uk Limited
Cultural & Related,Open Spaces,Community and Leisure ,Premises related Expenditure,Grounds Maintenance Costs,Non Contract Tree Works,27/05/2021,344540,2800,The Arboricultural Co Ltd
Planning & Development,Community Development,Community and Leisure ,Supplies & Services,Grants & Subscriptions,Grants,20/05/2021,342795,3500,King Arthurs Way Community Association
Environmental & Regulatory,Waste management,Environmental,Supplies & Services,"Printing, Stationery & General Office Expenses",External Printing,27/05/2021,343014,3047.1,Dura-Id Solutions Ltd
Environmental & Regulatory,Street Cleansing (not chargeable to Highways),Environmental,Employees,Indirect Employee Expenses,Agency Staff - Waged Posts,13/05/2021,343017,391.8,24-7 Staffing
Environmental & Regulatory,Waste management,Environmental,Employees,Indirect Employee Expenses,Agency Staff - Waged Posts,13/05/2021,343017,2375.38,24-7 Staffing
Environmental & Regulatory,Waste management,Environmental,Employees,Indirect Employee Expenses,Agency Staff - Waged Posts,13/05/2021,343017,506.1,24-7 Staffing
Environmental & Regulatory,Regulatory Services,Housing and Environmental Health ,Supplies & Services,Grants and subscriptions,Capital Grants,13/05/2021,343259,3952.5,D Jones Plumbing & Heating Ltd
"Highways, Roads & Transport",Parking Services,Plan Pol & Transport,Supplies & Services,Services,Professional Fees,13/05/2021,342834,677.19,Park Now Limited
"Highways, Roads & Transport",Parking Services,Plan Pol & Transport,Transport Related Costs,Management Fee,Car Park charges,13/05/2021,342834,2716.65,Park Now Limited
Environmental & Regulatory,Waste management,Environmental,Transport Related Expenditure,Direct Transport Costs,Repair Materials,27/05/2021,343777,3404.99,Dennis Eagle Ltd
Environmental & Regulatory,Street Cleansing (not chargeable to Highways),Environmental,Employees,Indirect Employee Expenses,Agency Staff - Waged Posts,27/05/2021,344321,483.22,24-7 Staffing
Environmental & Regulatory,Waste management,Environmental,Employees,Indirect Employee Expenses,Agency Staff - Waged Posts,27/05/2021,344321,2936.62,24-7 Staffing
Central Services to the Public,Management & Support Services,IT,Supplies & Services,Communications & Computing,Software Maintenance,27/05/2021,343053,3478.7,Winchester City Council
Environmental & Regulatory,Street Cleansing (not chargeable to Highways),Environmental,Employees,Indirect Employee Expenses,Agency Staff - Waged Posts,06/05/2021,342115,579.37,24-7 Staffing
Environmental & Regulatory,Waste management,Environmental,Employees,Indirect Employee Expenses,Agency Staff - Waged Posts,06/05/2021,342115,1602.58,24-7 Staffing
Environmental & Regulatory,Waste management,Environmental,Employees,Indirect Employee Expenses,Agency Staff - Waged Posts,06/05/2021,342115,1341.79,24-7 Staffing
Environmental & Regulatory,Regulatory Services,Housing and Environmental Health ,Supplies & Services,Grants and subscriptions,Capital Grants,13/05/2021,343105,4244.61,Hampshire Mobility Services
Central Services to the Public,Management & Support Services,Premises & Asset Management,Premises related Expenditure,Repairs Alterations & Maintenance of Buildings,General Repairs,20/05/2021,343992,3566.95,Sse Contracting Ltd
Environmental & Regulatory,Waste & Recycling Management,Environmental,Employees,Indirect Employee Expenses,Agency Staff - Waged Posts,20/05/2021,343776,195.9,24-7 Staffing
Environmental & Regulatory,Street Cleansing (not chargeable to Highways),Environmental,Employees,Indirect Employee Expenses,Agency Staff - Waged Posts,20/05/2021,343776,809,24-7 Staffing
Environmental & Regulatory,Waste management,Environmental,Employees,Indirect Employee Expenses,Agency Staff - Waged Posts,20/05/2021,343776,1951.3,24-7 Staffing
Environmental & Regulatory,Waste management,Environmental,Employees,Indirect Employee Expenses,Agency Staff - Waged Posts,20/05/2021,343776,614.03,24-7 Staffing
Central Services to the Public,Management & Support Services,Environmental,Transport Related Expenditure,Direct Transport Costs,Diesel,06/05/2021,341406,3582.36,Wp Group Limited
Planning & Development,Economic Development,Planning Policy & Economic Development ,Supplies & Services,Services,Training Courses,19/05/2021,343107,4300,Coolled Limited
Environmental & Regulatory,Street Cleansing (not chargeable to Highways),Environmental,Employees,Indirect Employee Expenses,Agency Staff - Waged Posts,20/05/2021,343775,1062.59,24-7 Staffing
Environmental & Regulatory,Waste management,Environmental,Employees,Indirect Employee Expenses,Agency Staff - Waged Posts,20/05/2021,343775,2366.95,24-7 Staffing
Environmental & Regulatory,Waste management,Environmental,Employees,Indirect Employee Expenses,Agency Staff - Waged Posts,20/05/2021,343775,235.08,24-7 Staffing
Central Services to the Public,Management & Support Services,Environmental,Transport Related Expenditure,Direct Transport Costs,Diesel,27/05/2021,344486,3757.72,Wp Group Limited
Environmental & Regulatory,Regulatory Services,Housing and Environmental Health ,Supplies & Services,Grants and subscriptions,Capital Grants,13/05/2021,343256,4512.87,Spc Bathrooms Ltd
Central Services to the Public,Management & Support Services,Environmental,Transport Related Expenditure,Direct Transport Costs,Diesel,27/05/2021,343046,3793.16,Wp Group Limited
Environmental & Regulatory,Regulatory Services,Housing and Environmental Health ,Supplies & Services,Grants and subscriptions,Capital Grants,27/05/2021,344653,4560,Dolphin Mobility
Cultural & Related,Open Spaces,Community and Leisure ,Premises related Expenditure,Repairs Alterations & Maintenance of Buildings,Estates premises costs - AMP,27/05/2021,341520,3803.05,Going Underground Ltd
Environmental & Regulatory,Waste management,Environmental,Supplies & Services,Grants & Subscriptions,Subscriptions,20/05/2021,343032,4653,Hampshire County Council
Central Services to the Public,Management & Support Services,Premises & Asset Management,Premises related Expenditure,Repairs Alterations & Maintenance of Buildings,Estates premises costs - AMP,27/05/2021,343016,3900,Pope Consulting Ltd
Planning & Development,Development Control,Planning & Building,Third Party Payments,Commuted Sum,CIL Contribution,06/05/2021,342308,4751.68,North Baddesley P C
External Trading Accounts,Business Parks,Premises & Asset Management,Premises related Expenditure,Cleaning and domestic supplies,Contract Cleaning - Non Estates,27/05/2021,344377,215.01,Hi-Spec Facilities Services Plc
Central Services to the Public,Management & Support Services,Premises & Asset Management,Premises related Expenditure,Cleaning and domestic supplies,Contract Cleaning - Non Estates,27/05/2021,344377,224.66,Hi-Spec Facilities Services Plc
Environmental & Regulatory,Regulatory Services,Premises & Asset Management,Premises related Expenditure,Cleaning and domestic supplies,Contract Cleaning - Non Estates,27/05/2021,344377,2006.74,Hi-Spec Facilities Services Plc
Cultural & Related,Recreation & Sport,Community and Leisure ,Premises related Expenditure,Cleaning and domestic supplies,Contract Cleaning - Non Estates,27/05/2021,344377,752.53,Hi-Spec Facilities Services Plc
Environmental & Regulatory,"Cemetery, Cremation and Mortuary Services",Community and Leisure ,Premises related Expenditure,Cleaning and domestic supplies,Contract Cleaning - Non Estates,27/05/2021,344377,35.83,Hi-Spec Facilities Services Plc
Cultural & Related,Open Spaces,Community and Leisure ,Premises related Expenditure,Cleaning and domestic supplies,Contract Cleaning - Non Estates,27/05/2021,344377,752.53,Hi-Spec Facilities Services Plc
"Highways, Roads & Transport",Parking Services,Plan Pol & Transport,Premises related Expenditure,Cleaning and domestic supplies,Contract Cleaning - Non Estates,27/05/2021,344377,35.83,Hi-Spec Facilities Services Plc
Cultural & Related,Recreation & Sport,Community and Leisure ,Supplies & Services,Services,Professional Fees,06/05/2021,342077,4040,Blake Morgan
Central Services to the Public,Management & Support Services,IT,Supplies & Services,Communications & Computing,Hardware Maintenance,27/05/2021,342256,4076.63,Nouveau Solutions Ltd
Central Services to the Public,Management & Support Services,Environmental,Transport Related Expenditure,Direct Transport Costs,Red Derv,13/05/2021,342081,696.8,Wp Group Limited
Central Services to the Public,Management & Support Services,Environmental,Transport Related Expenditure,Direct Transport Costs,Diesel,13/05/2021,342081,3514.35,Wp Group Limited
Planning & Development,Development Control,Planning & Building,Third Party Payments,Commuted Sum,CIL Contribution,06/05/2021,342310,4997.52,Over Wallop Parish Council
Cultural & Related,Culture & Heritage,Community and Leisure ,Third Party Payments,Private contractors,Main Contractor Costs,20/05/2021,343993,5000,Svetlana Kondakova
Planning & Development,Development Control,Planning & Building,Third Party Payments,Commuted Sum,CIL Contribution,06/05/2021,342309,5123.43,Amport Parish Council
Environmental & Regulatory,Regulatory Services,Housing and Environmental Health ,Supplies & Services,Grants and subscriptions,Capital Grants,13/05/2021,343253,5192.72,J D Codd Ltd
"Highways, Roads & Transport",Highways and roads - maintenance,Plan Pol & Transport,Third Party Payments,Private contractors,Main Contractor Costs,20/05/2021,339902,4487,Miw Water Cooler Experts
Environmental & Regulatory,Regulatory Services,Housing and Environmental Health ,Supplies & Services,Grants and subscriptions,Capital Grants,13/05/2021,343106,5442.49,Lifestyle Solutions
Central Services to the Public,Management & Support Services,Finance,Supplies & Services,"Printing, Stationery & General Office Expenses",Postage Costs,13/05/2021,342216,5654.1,Pitney Bowes Limited
Environmental & Regulatory,Regulatory Services,Housing and Environmental Health ,Supplies & Services,Grants and subscriptions,Capital Grants,13/05/2021,343257,5657.24,Lifestyle Solutions
Central Services to the Public,Management & Support Services,Premises & Asset Management,Premises related Expenditure,Water Services,Water And Sewerage Charges,20/05/2021,340707,5710.59,Castle Water Limited
Central Services to the Public,Management & Support Services,Finance,Supplies & Services,Services,Professional Fees,27/05/2021,344471,5143.8,Dc Commercial Solicitors
Central Services to the Public,Elections,Legal & Democratic,Supplies & Services,"Printing, Stationery & General Office Expenses",Postage Costs,20/05/2021,343073,6381.29,Royal Mail Group Ltd
Central Services to the Public,Management & Support Services,Premises & Asset Management,Premises related Expenditure,Repairs Alterations & Maintenance of Buildings,General Repairs,20/05/2021,343991,5392.34,Sse Contracting Ltd
Central Services,Corporate & Democratic Core,Corporate & Democratic,Supplies & Services,Grants & Subscriptions,Subscriptions,27/05/2021,342107,5550,South East Employers
Environmental & Regulatory,Regulatory Services,Housing and Environmental Health ,Supplies & Services,Grants and subscriptions,Capital Grants,20/05/2021,343922,6710,Grb Groundworks Ltd
External Trading Accounts,Property Investments,Premises & Asset Management,Supplies & Services,Services,Professional Fees,13/05/2021,343082,6375,Vail Williams Llp
Central Services to the Public,Management & Support Services,IT,Supplies & Services,"Equipment, Furniture & Materials",IT Supp and Serv AMP,06/05/2021,342108,6554.25,Bt Business Direct
Cultural & Related,Recreation & Sport,Community and Leisure ,Supplies & Services,Services,Professional Fees,06/05/2021,340983,6710,Blake Morgan
Cultural & Related,Recreation & Sport,Community and Leisure ,Supplies & Services,Services,Professional Fees,06/05/2021,340830,6800,Blake Morgan
Cultural & Related,Recreation & Sport,Community and Leisure ,Supplies & Services,Grants and subscriptions,Capital Grants,20/05/2021,344016,8994.27,Longparish Cricket Club
Central Services,Corporate & Democratic Core,Corporate & Democratic,Supplies & Services,Services,Professional Fees,13/05/2021,342991,7834,Hemingwaydesign
Cultural & Related,Open Spaces,Community and Leisure ,Third Party Payments,Private contractors,Main Contractor Costs,27/05/2021,344490,7948,Rocon Contractors Ltd
Central Services to the Public,Management & Support Services,Environmental,Transport Related Expenditure,Direct Transport Costs,Diesel,27/05/2021,344317,8263.14,Wp Group Limited
Central Services to the Public,Management & Support Services,Environmental,Transport Related Expenditure,Direct Transport Costs,Diesel,06/05/2021,342075,8679.99,Wp Group Limited
Central Services to the Public,Management & Support Services,Environmental,Transport Related Expenditure,Direct Transport Costs,Vehicles and Plant,20/05/2021,339079,8733,Hazlewood Engineering Co Ltd
Housing Services,Housing Benefits ,Revenues,Supplies & Services,Communications & Computing,Software Maintenance,13/05/2021,342999,4448.28,Northgate Public Services Uk Ltd
Central Services to the Public,Local Tax Collection,Revenues,Supplies & Services,Communications & Computing,Software Maintenance,13/05/2021,342999,4448.27,Northgate Public Services Uk Ltd
"Highways, Roads & Transport",Parking Services,Plan Pol & Transport,Premises related Expenditure,Energy Costs,Electricity,13/05/2021,342267,9416.7,Hampshire County Council
Environmental & Regulatory,Waste management,Environmental,Supplies & Services,"Equipment, Furniture & Materials",Purchase Equip + Materials,06/05/2021,340113,9810,Mgb Plastics Ltd
Central Services to the Public,Management & Support Services,Environmental,Transport Related Expenditure,Direct Transport Costs,Diesel,20/05/2021,343081,9917.99,Wp Group Limited
Central Services,Corporate & Democratic Core,Corporate & Democratic,Supplies & Services,Miscellaneous Expenses,External Audit Fees,13/05/2021,343000,10169.75,Ernst & Young Llp
Housing Services,Homelessness,Housing and Environmental Health ,Supplies & Services,Grants & Subscriptions,Grants,27/05/2021,343999,12287,Andover Crisis & Support Centre
Environmental & Regulatory,Regulatory Services,Housing and Environmental Health ,Supplies & Services,Grants and subscriptions,Capital Grants,27/05/2021,344655,12402.05,Bevan & Co Building
Central Services to the Public,Elections,Legal & Democratic,Supplies & Services,"Printing, Stationery & General Office Expenses",Postage Costs,27/05/2021,344007,13107.8,Financial Data Management Plc
Planning & Development,Development Control,Planning & Building,Third Party Payments,Commuted Sum,CIL Contribution,06/05/2021,342307,13494.9,Broughton Parish Council
Environmental & Regulatory,Regulatory Services,Housing and Environmental Health ,Supplies & Services,Grants and subscriptions,Capital Grants,20/05/2021,343919,13840,A & E Builders
Central Services to the Public,Elections,Legal & Democratic,Premises related Expenditure,Rents,Premises Hire,06/05/2021,341497,14012.2,Places For People Leisure Ltd - Developments
Planning & Development,Community Development,Community and Leisure ,Supplies & Services,Grants & Subscriptions,Grants,13/05/2021,343251,14046.05,Unity
Planning & Development,Development Control,Planning & Building,Third Party Payments,Commuted Sum,CIL Contribution,06/05/2021,342305,14050.94,Andover Town Council
Central Services to the Public,Management & Support Services,IT,Supplies & Services,Communications & Computing,Communication Links,13/05/2021,342281,12399,Virgin Media Payments Ltd
Cultural & Related,Open Spaces,Community and Leisure ,Premises related Expenditure,Repairs Alterations & Maintenance of Buildings,Estates premises costs - AMP,13/05/2021,342877,15860,Cts Bridges Ltd
Planning & Development,Development Control,Planning & Building,Third Party Payments,Commuted Sum,CIL Contribution,06/05/2021,342306,19313.96,Houghton Parish Council
Central Services to the Public,Emergency Planning,Corporate & Democratic,Supplies & Services,Miscellaneous Expenses,Emergency Planning Costs,06/05/2021,341506,20405.24,Hampshire County Council
"Highways, Roads & Transport",Parking Services,Plan Pol & Transport,Supplies & Services,Communications & Computing,Software Maintenance,13/05/2021,343021,17599.76,Imperial Civil Enforcement Solutions
Cultural & Related,Culture & Heritage,Community and Leisure ,Supplies & Services,Grants & Subscriptions,Grants,13/05/2021,343080,21709.14,King Johns House And Tudor Cottage Trust Ltd
Cultural & Related,Culture & Heritage,Community and Leisure ,Third Party Payments,Private contractors,Main Contractor Costs,20/05/2021,343910,20000,Circling The Square Ltd
Cultural & Related,Recreation & Sport,Community and Leisure ,Supplies & Services,Grants and subscriptions,Capital Grants,13/05/2021,343249,25000,Romsey Town Council
Housing Services,Homelessness,Housing and Environmental Health ,Premises related Expenditure,Repairs Alterations & Maintenance of Buildings,General Repairs,20/05/2021,340829,27000,Aster Communities
Housing Services,Homelessness,Housing and Environmental Health ,Premises related Expenditure,Repairs Alterations & Maintenance of Buildings,General Repairs,20/05/2021,343998,27000,Aster Communities
Environmental & Regulatory,Regulatory Services,Premises & Asset Management,Premises related Expenditure,Water Services,Water And Sewerage Charges,20/05/2021,323711,33078.37,Castle Water Limited
Planning & Development,Development Control,Planning & Building,Third Party Payments,Commuted Sum,CIL Contribution,06/05/2021,342304,34084.85,Romsey Extra Parish Council
Planning & Development,Community Development,Community and Leisure ,Supplies & Services,Grants & Subscriptions,Grants,13/05/2021,343247,57269.47,Citizen'S Advice Test Valley
Central Services to the Public,Local Tax Collection,Revenues,Supplies & Services,Miscellaneous Expenses,Other Miscellaneous Costs,13/05/2021,343040,53546.75,Andover Town Centre Bid Ltd
Cultural & Related,Culture & Heritage,Premises & Asset Management,Premises related Expenditure,Repairs Alterations & Maintenance of Buildings,Estates premises costs - AMP,27/05/2021,344022,53860.85,Stonewest Limited
Cultural & Related,Tourism,Planning Policy & Economic Development ,Supplies & Services,Grants & Subscriptions,Grants,06/05/2021,342070,73630,Tourism South East
External Trading Accounts,Property Investments,Estates and Economic Development ,Third Party Payments,Private contractors,Main Contractor Costs,20/05/2021,343952,100139.65,Kier Property Developments Ltd.
